fUSD/lending_fUSD_20240329
["ID","MTS","AMOUNT","RATE_DAILY","PERIOD"]
[320982529,1711727468350,-2450.8,0.00056438,120]
[320982530,1711727468359,-500.0,0.00056438,120]
[320982531,1711727468369,-2642.03,0.00056438,120]
[320982532,1711727468380,-1403.63,0.00056438,120]
[320982533,1711727468390,-2002.47,0.00056438,120]
[320982534,1711727468401,-500.0,0.00056438,120]
[320982535,1711727468412,-3231.44,0.00056438,120]
[320982536,1711727468423,-1180.94,0.00056438,120]
[320982537,1711727468433,-3834.73,0.00056438,21]
[320982538,1711727468443,-1463.13,0.00056438,120]
[320982539,1711727468453,-1395.72,0.00056438,120]
[320982540,1711727468468,-1805.89,0.00056438,120]
[320982541,1711727468481,-1942.66,0.00056438,120]
[320982542,1711727468492,-4514.05,0.00056438,120]
[320982543,1711727468503,-742.08,0.00056438,120]
[320982544,1711727468513,-733.91,0.00056438,120]
[320982545,1711727468524,-1636.77,0.00056438,120]
[320982546,1711727468534,-612.5,0.00056438,120]
[320982547,1711727468546,-287.14998862,0.00056438,120]
[320982548,1711727468558,-2474.6,0.00056438,120]
[320982549,1711727468569,-1947.96,0.00056438,120]
[320982550,1711727468580,-802.89,0.00056438,120]
[320982551,1711727468592,-949.51,0.00056438,120]
[320982552,1711727468603,-2662.27,0.00056438,120]
[320982553,1711727468615,-500.0,0.00056438,120]
[320982554,1711727468627,-500.0,0.00056438,120]
[320982555,1711727468638,-500.04,0.00056438,120]
[320982556,1711727468649,-1925.65,0.00056438,120]
[320982557,1711727468660,-500.0,0.00056438,120]
[320982558,1711727468670,-500.0,0.00056438,120]
[320982559,1711727468680,-3660.18,0.00056438,120]
[320982560,1711727468692,-3065.63,0.00056438,120]
[320982561,1711727468703,-550.56,0.00056438,120]
[320982562,1711727468715,-3205.63,0.00056438,120]
[320982563,1711727468726,-1058.7,0.00056438,120]
[320982564,1711727468738,-4965.43,0.00056438,120]
[320982565,1711727468748,-500.0,0.00056438,120]
[320982566,1711727468760,-3495.3,0.00056438,120]
[320982567,1711727468771,-500.0,0.00056438,120]
[320982568,1711727468782,-2680.22,0.00056438,120]
[320982569,1711727468793,-500.0,0.00056438,120]
[320982570,1711727468804,-2574.1,0.00056438,120]
[320982571,1711727468814,-520.8,0.00056438,120]
[320982572,1711727468825,-525.6,0.00056438,120]
[320982573,1711727468837,-1064.04,0.00056438,120]
[320982574,1711727468849,-2324.45,0.00056438,120]
[320982575,1711727468865,-207.17777778,0.00056438,120]
[320982576,1711727468876,-172.7812482,0.00056496,56]
[320982577,1711727468889,-150.0,0.00056514,120]
[320982578,1711727468900,-226.58,0.000566,30]
[320982579,1711727468911,-151.18226642,0.00056688,70]
[320982580,1711727468922,-158.49334373,0.00056708,120]
[320982581,1711727468933,-1556.54,0.00056712,120]
[320982582,1711727468948,-659.08,0.00056712,120]
[320982583,1711727468959,-935.94,0.00056712,120]
[320982584,1711727468969,-1235.87,0.00056712,120]
[320982585,1711727468981,-543.31,0.00056712,120]
[320982586,1711727468991,-1414.23,0.00056712,120]
[320982587,1711727469008,-774.8,0.00056712,120]
[320982588,1711727469019,-8767.87,0.00056712,120]
[320982589,1711727469030,-4545.9,0.00056712,120]
[320982590,1711727469041,-1435.29,0.00056712,120]
[320982591,1711727469052,-614.95,0.00056712,120]
[320982592,1711727469061,-729.96,0.00056712,120]
[320982593,1711727469072,-509.47,0.00056712,120]
[320982594,1711727469083,-628.83,0.00056712,120]
[320982595,1711727469093,-724.91,0.00056712,120]
[320982596,1711727469104,-1918.37,0.00056712,120]
[320982597,1711727469114,-916.59,0.00056712,120]
[320982598,1711727469124,-500.0,0.00056712,120]
[320982599,1711727469135,-852.8,0.00056712,120]
[320982600,1711727469144,-500.0,0.00056712,120]
[320982601,1711727469155,-500.0,0.00056712,120]
[320982602,1711727469166,-960.04,0.00056712,120]
[320982603,1711727469177,-581.19,0.00056712,120]
[320982604,1711727469189,-5112.99,0.00056712,120]
[320982605,1711727469201,-1097.14,0.00056712,120]
[320982606,1711727469212,-3742.34,0.00056712,120]
[320982607,1711727469222,-1281.54,0.00056712,120]
[320982608,1711727469234,-500.0,0.00056712,120]
[320982609,1711727469244,-501.49,0.00056712,120]
[320982610,1711727469255,-500.0,0.00056712,120]
[320982611,1711727469267,-2596.86,0.00056712,120]
[320982612,1711727469278,-585.91,0.00056712,120]
[320982613,1711727469294,-1518.44,0.00056712,120]
[320982614,1711727469310,-500.0,0.00056712,120]
[320982615,1711727469328,-6048.06,0.00056712,120]
[320982616,1711727469339,-1161.06,0.00056712,120]
[320982617,1711727469350,-500.0,0.00056712,120]
[320982618,1711727469360,-745.62,0.00056712,120]
[320982619,1711727469370,-1559.57,0.00056712,120]
[320982620,1711727469380,-2450.8,0.00056712,120]
[320982621,1711727469394,-500.0,0.00056712,120]
[320982622,1711727469404,-2642.03,0.00056712,120]
[320982623,1711727469415,-1403.63,0.00056712,120]
[320982624,1711727469435,-2002.47,0.00056712,120]
[320982625,1711727469450,-500.0,0.00056712,120]
[320982626,1711727469461,-3231.44,0.00056712,120]
[320982627,1711727469480,-1180.94,0.00056712,120]
[320982628,1711727469492,-3834.73,0.00056712,21]
[320982629,1711727469505,-1463.13,0.00056712,120]
[320982630,1711727469529,-1395.72,0.00056712,120]
[320982631,1711727469546,-1805.89,0.00056712,120]
[320982632,1711727469557,-1942.66,0.00056712,120]
[320982633,1711727469585,-1171.63,0.00056712,120]
[320982634,1711727469597,-4514.05,0.00056712,120]
[320982635,1711727469611,-742.08,0.00056712,120]
[320982636,1711727469622,-733.91,0.00056712,120]
[320982637,1711727469633,-1636.77,0.00056712,120]
[320982638,1711727469643,-612.5,0.00056712,120]
[320982639,1711727469655,-2474.6,0.00056712,120]
[320982640,1711727469665,-1947.96,0.00056712,120]
[320982641,1711727469677,-802.89,0.00056712,120]
[320982642,1711727469687,-949.51,0.00056712,120]
[320982643,1711727469698,-2662.27,0.00056712,120]
[320982644,1711727469714,-500.0,0.00056712,120]
[320982645,1711727469725,-336.52568767,0.00056712,120]
[320982646,1711727469736,-500.04,0.00056712,120]
[320982647,1711727469757,-1925.65,0.00056712,120]
[320982648,1711727469772,-526.89911274,0.00056712,120]
[320982649,1711727469784,-500.0,0.00056712,120]
[320982650,1711727469794,-3660.18,0.00056712,120]
[320982651,1711727469805,-3065.63,0.00056712,120]
[320982652,1711727469815,-550.56,0.00056712,120]
[320982653,1711727469826,-3205.63,0.00056712,120]
[320982654,1711727469844,-1058.7,0.00056712,120]
[320982655,1711727469855,-4965.43,0.00056712,120]
[320982656,1711727469866,-416.76,0.00056712,120]
[320982657,1711727469877,-3495.3,0.00056712,120]
[320982658,1711727469888,-500.0,0.00056712,120]
[320982659,1711727469899,-2680.22,0.00056712,120]
[320982660,1711727469909,-280.24591666,0.00056712,120]
[320982661,1711727469920,-2574.1,0.00056712,120]
[320982662,1711727469930,-520.8,0.00056712,120]
[320982663,1711727469940,-152.94752144,0.00056712,120]
[320982664,1711727469956,-372.65247856,0.00056712,120]
[320982665,1711727469966,-1064.04,0.00056712,120]
[320982666,1711727469978,-2324.45,0.00056712,120]
[320982667,1711727469989,-410.981688,0.000568,30]
[320982668,1711727469998,-2771.07583344,0.000568,120]
[320982669,1711727470383,-2455.52,0.0005315,120]
[320982670,1711727470394,-18337.27999998,0.000568,120]
[320982671,1711727470407,-564.91405766,0.000568,120]
[320982672,1711727470430,-5940.53097556,0.000568,120]
[320982673,1711727470449,-52944.94886344,0.000568,120]
[320982674,1711727470461,-224.25533439,0.0005689,120]
[320982675,1711727470472,-1556.54,0.00056986,120]
[320982676,1711727470482,-659.08,0.00056986,120]
[320982677,1711727470493,-935.94,0.00056986,120]
[320982678,1711727470504,-1235.87,0.00056986,120]
[320982679,1711727470514,-543.31,0.00056986,120]
[320982680,1711727470525,-1414.23,0.00056986,120]
[320982681,1711727470535,-774.8,0.00056986,120]
[320982682,1711727470546,-8767.87,0.00056986,120]
[320982683,1711727470557,-4545.9,0.00056986,120]
[320982684,1711727470569,-1435.29,0.00056986,120]
[320982685,1711727470580,-729.96,0.00056986,120]
[320982686,1711727470591,-614.95,0.00056986,120]
[320982687,1711727470602,-509.47,0.00056986,120]
[320982688,1711727470613,-628.83,0.00056986,120]
[320982689,1711727470624,-724.91,0.00056986,120]
[320982690,1711727470634,-1918.37,0.00056986,120]
[320982691,1711727470643,-916.59,0.00056986,120]
[320982692,1711727470654,-500.0,0.00056986,120]
[320982693,1711727470665,-852.8,0.00056986,120]
[320982694,1711727470675,-500.0,0.00056986,120]
[320982695,1711727470686,-500.0,0.00056986,120]
[320982696,1711727470695,-960.04,0.00056986,120]
[320982697,1711727470706,-581.19,0.00056986,120]
[320982698,1711727470717,-5112.99,0.00056986,120]
[320982699,1711727470728,-1097.14,0.00056986,120]
[320982700,1711727470738,-3742.34,0.00056986,120]
[320982701,1711727470749,-1281.54,0.00056986,120]
[320982702,1711727470759,-422.34615915,0.00056986,120]
[320982703,1711727470769,-501.49,0.00056986,120]
[320982704,1711727470779,-500.0,0.00056986,120]
[320982705,1711727470789,-2596.86,0.00056986,120]
[320982706,1711727470798,-585.91,0.00056986,120]
[320982707,1711727470808,-1518.44,0.00056986,120]
[320982708,1711727470818,-500.0,0.00056986,120]
[320982709,1711727470831,-6048.06,0.00056986,120]
[320982710,1711727470842,-1161.06,0.00056986,120]
[320982711,1711727470851,-500.0,0.00056986,120]
[320982712,1711727470862,-745.62,0.00056986,120]
[320982713,1711727470872,-1559.57,0.00056986,120]
[320982714,1711727470881,-2450.8,0.00056986,120]
[320982715,1711727470890,-500.0,0.00056986,120]
[320982716,1711727470901,-2642.03,0.00056986,120]
[320982717,1711727470911,-1403.63,0.00056986,120]
[320982718,1711727470921,-2002.47,0.00056986,120]
[320982719,1711727470931,-648.73680229,0.00056986,120]
[320982720,1711727470941,-3231.44,0.00056986,120]
[320982721,1711727470951,-1180.94,0.00056986,120]
[320982722,1711727470960,-3834.73,0.00056986,21]
[320982723,1711727470970,-1463.13,0.00056986,120]
[320982724,1711727470981,-1395.72,0.00056986,120]
[320982725,1711727470991,-1805.89,0.00056986,120]
[320982726,1711727471002,-1942.66,0.00056986,120]
[320982727,1711727471012,-4514.05,0.00056986,120]
[320982728,1711727471023,-742.08,0.00056986,120]
[320982729,1711727471032,-733.91,0.00056986,120]
[320982730,1711727471042,-1636.77,0.00056986,120]
[320982731,1711727471052,-612.5,0.00056986,120]
[320982732,1711727471062,-2474.6,0.00056986,120]
[320982733,1711727471072,-1947.96,0.00056986,120]
[320982734,1711727471082,-802.89,0.00056986,120]
[320982735,1711727471094,-2662.27,0.00056986,120]
[320982736,1711727471103,-949.51,0.00056986,120]
[320982737,1711727471113,-500.0,0.00056986,120]
[320982738,1711727471124,-500.04,0.00056986,120]
[320982739,1711727471133,-1925.65,0.00056986,120]
[320982740,1711727471144,-3660.18,0.00056986,120]
[320982741,1711727471153,-500.0,0.00056986,120]
[320982742,1711727471163,-3065.63,0.00056986,120]
[320982743,1711727471172,-550.56,0.00056986,120]
[320982744,1711727471182,-3205.63,0.00056986,120]
[320982745,1711727471191,-1058.7,0.00056986,120]
[320982746,1711727471200,-4965.43,0.00056986,120]
[320982747,1711727471210,-3495.3,0.00056986,120]
[320982748,1711727471219,-500.0,0.00056986,120]
[320982749,1711727471229,-2680.22,0.00056986,120]
[320982750,1711727471239,-2574.1,0.00056986,120]
[320982751,1711727471248,-520.8,0.00056986,120]
[320982752,1711727471259,-525.6,0.00056986,120]
[320982753,1711727471269,-1064.04,0.00056986,120]
[320982754,1711727471278,-2324.45,0.00056986,120]
[320982755,1711727471288,-850.0,0.00057,3]
[320982756,1711727471298,-15595.55169724,0.00057,120]
[320982757,1711727471312,-5064.50037266,0.00057,120]
[320982758,1711727471327,-4421.53962734,0.00057,120]
[320982759,1711727471339,-4918.40830276,0.00057,120]
[320982760,1711727471349,-600.0,0.00057009,90]
[320982761,1711727471360,-700.0,0.00057009,90]
[320982762,1711727471374,-207.17777778,0.00057041,120]
[320982763,1711727471384,-207.29,0.000572,14]
[320982764,1711727471395,-226.58,0.000572,30]
[320982765,1711727471405,-1318.09,0.00057213,120]
[320982766,1711727471415,-1050.24886909,0.00057257,2]
[320982767,1711727471426,-150.0,0.00057259,120]
[320982768,1711727471436,-1556.54,0.0005726,120]
[320982769,1711727471446,-659.08,0.0005726,120]
[320982770,1711727471457,-935.94,0.0005726,120]
[320982771,1711727471468,-1235.87,0.0005726,120]
[320982772,1711727471479,-543.31,0.0005726,120]
[320982773,1711727471490,-1414.23,0.0005726,120]
[320982774,1711727471504,-774.8,0.0005726,120]
[320982775,1711727471514,-8767.87,0.0005726,120]
[320982776,1711727471524,-4545.9,0.0005726,120]
[320982777,1711727471534,-1435.29,0.0005726,120]
[320982778,1711727471544,-729.96,0.0005726,120]
[320982779,1711727471555,-614.95,0.0005726,120]
[320982780,1711727471564,-509.47,0.0005726,120]
[320982781,1711727471575,-628.83,0.0005726,120]
[320982782,1711727471585,-724.91,0.0005726,120]
[320982783,1711727471594,-1918.37,0.0005726,120]
[320982784,1711727471604,-916.59,0.0005726,120]
[320982785,1711727471614,-500.0,0.0005726,120]
[320982786,1711727471625,-852.8,0.0005726,120]
[320982787,1711727471636,-500.0,0.0005726,120]
[320982788,1711727471646,-500.0,0.0005726,120]
[320982789,1711727471658,-960.04,0.0005726,120]
[320982790,1711727471669,-581.19,0.0005726,120]
[320982791,1711727471679,-5112.99,0.0005726,120]
[320982792,1711727471689,-1097.14,0.0005726,120]
[320982793,1711727471699,-3742.34,0.0005726,120]
[320982794,1711727471708,-1281.54,0.0005726,120]
[320982795,1711727471719,-501.49,0.0005726,120]
[320982796,1711727471730,-182.16847607,0.0005726,120]
[320982797,1711727471739,-2596.86,0.0005726,120]
[320982798,1711727471749,-585.91,0.0005726,120]
[320982799,1711727471759,-1518.44,0.0005726,120]
[320982800,1711727471770,-6048.06,0.0005726,120]
[320982801,1711727471780,-500.0,0.0005726,120]
[320982802,1711727471791,-1161.06,0.0005726,120]
[320982803,1711727471802,-500.0,0.0005726,120]
[320982804,1711727471812,-745.62,0.0005726,120]
[320982805,1711727471822,-1559.57,0.0005726,120]
[320982806,1711727471831,-2450.8,0.0005726,120]
[320982807,1711727471841,-500.0,0.0005726,120]
[320982808,1711727471851,-68.38380265,0.0005726,120]
[320982809,1711727471865,-2079.36991224,0.0005726,120]
[320982810,1711727471895,-327.29697359,0.00052328,120]
[320982811,1711727471914,-1702.72302641,0.00052328,120]
[320982812,1711727471924,-494.27628511,0.0005726,120]
[320982813,1711727471934,-1403.63,0.0005726,120]
[320982814,1711727471944,-2002.47,0.0005726,120]
[320982815,1711727471954,-3231.44,0.0005726,120]
[320982816,1711727471964,-1180.94,0.0005726,120]
[320982817,1711727471974,-3834.73,0.0005726,21]
[320982818,1711727471985,-1463.13,0.0005726,120]
[320982819,1711727471995,-1395.72,0.0005726,120]
[320982820,1711727472005,-1805.89,0.0005726,120]
[320982821,1711727472015,-1942.66,0.0005726,120]
[320982822,1711727472026,-4514.05,0.0005726,120]
[320982823,1711727472036,-742.08,0.0005726,120]
[320982824,1711727472046,-733.91,0.0005726,120]
[320982825,1711727472056,-1636.77,0.0005726,120]
[320982826,1711727472066,-612.5,0.0005726,120]
[320982827,1711727472076,-2474.6,0.0005726,120]
[320982828,1711727472087,-1947.96,0.0005726,120]
[320982829,1711727472097,-802.89,0.0005726,120]
[320982830,1711727472107,-2662.27,0.0005726,120]
[320982831,1711727472117,-949.51,0.0005726,120]
[320982832,1711727472127,-500.0,0.0005726,120]
[320982833,1711727472138,-1925.65,0.0005726,120]
[320982834,1711727472148,-500.04,0.0005726,120]
[320982835,1711727472159,-3660.18,0.0005726,120]
[320982836,1711727472169,-500.0,0.0005726,120]
[320982837,1711727472179,-3065.63,0.0005726,120]
[320982838,1711727472190,-550.56,0.0005726,120]
[320982839,1711727472200,-3205.63,0.0005726,120]
[320982840,1711727472210,-1058.7,0.0005726,120]
[320982841,1711727472231,-4965.43,0.0005726,120]
[320982842,1711727472242,-3495.3,0.0005726,120]
[320982843,1711727472253,-500.0,0.0005726,120]
[320982844,1711727472263,-1539.73327917,0.0005726,120]
[320982845,1711727472277,-1140.48672083,0.0005726,120]
[320982846,1711727472289,-2574.1,0.0005726,120]
[320982847,1711727472299,-520.8,0.0005726,120]
[320982848,1711727472309,-525.6,0.0005726,120]
[320982849,1711727472319,-250.87423075,0.0005726,120]
[320982850,1711727472331,-813.16576925,0.0005726,120]
[320982851,1711727472342,-2193.95615971,0.0005726,120]
[320982852,1711727472370,-130.49384029,0.0005726,120]
[320982853,1711727472381,-600.0,0.00057283,90]
[320982854,1711727472390,-700.0,0.00057283,90]
[320982855,1711727472402,-579.09,0.00057333,2]
[320982856,1711727472413,-151.0,0.00057397,120]
[320982857,1711727472423,-739.00918773,0.000574,14]
[320982858,1711727472434,-1278.0,0.00057433,25]
[320982859,1711727472443,-401.09140891,0.000575,90]
[320982860,1711727472485,-1.1e-07,0.000575,90]
[320982861,1711727472734,-1172.2238,0.00032949,2]
[320982862,1711727472746,-648.95,0.00052054,120]
[320982863,1711727472757,-2030.02,0.00052602,120]
[320982864,1711727472768,-2030.02,0.00052876,120]
[320982865,1711727472780,-2030.02,0.0005315,120]
[320982866,1711727472791,-2455.52,0.00053424,120]
[320982867,1711727472802,-1409.0102,0.00053424,120]
[320982868,1711727472815,-621.0098,0.00053424,120]
[320982869,1711727472827,-2455.52,0.00053698,120]
[320982870,1711727472837,-2030.02,0.00053698,120]
[320982871,1711727472847,-150.0,0.00053742,7]
[320982872,1711727472858,-290.19964007,0.00053744,7]
[320982873,1711727472869,-150.0,0.000539,7]
[320982874,1711727472880,-2455.52,0.00053972,120]
[320982875,1711727472890,-2030.02,0.00053972,120]
[320982876,1711727472901,-2455.52,0.00054246,120]
[320982877,1711727472911,-518.13851758,0.0005442,2]
[320982878,1711727472922,-2455.52,0.0005452,120]
[320982879,1711727472932,-1122.13809441,0.000575,90]
[320982880,1711727472943,-666.0,0.00057534,120]
[320982881,1711727472954,-1556.54,0.00057534,120]
[320982882,1711727472964,-659.08,0.00057534,120]
[320982883,1711727472975,-935.94,0.00057534,120]
[320982884,1711727472988,-1235.87,0.00057534,120]
[320982885,1711727472998,-543.31,0.00057534,120]
[320982886,1711727473009,-1414.23,0.00057534,120]
[320982887,1711727473019,-774.8,0.00057534,120]
[320982888,1711727473030,-4545.9,0.00057534,120]
[320982889,1711727473040,-1435.29,0.00057534,120]
[320982890,1711727473051,-729.96,0.00057534,120]
[320982891,1711727473061,-614.95,0.00057534,120]
[320982892,1711727473072,-509.47,0.00057534,120]
[320982893,1711727473083,-628.83,0.00057534,120]
[320982894,1711727473093,-724.91,0.00057534,120]
[320982895,1711727473106,-1918.37,0.00057534,120]
[320982896,1711727473116,-916.59,0.00057534,120]
[320982897,1711727473126,-500.0,0.00057534,120]
[320982898,1711727473137,-852.8,0.00057534,120]
[320982899,1711727473148,-500.0,0.00057534,120]
[320982900,1711727473159,-500.0,0.00057534,120]
[320982901,1711727473171,-960.04,0.00057534,120]
[320982902,1711727473181,-581.19,0.00057534,120]
[320982903,1711727473192,-5112.99,0.00057534,120]
[320982904,1711727473202,-1097.14,0.00057534,120]
[320982905,1711727473213,-3742.34,0.00057534,120]
[320982906,1711727473224,-1281.54,0.00057534,120]
[320982907,1711727473236,-501.49,0.00057534,120]
[320982908,1711727473247,-2596.86,0.00057534,120]
[320982909,1711727473258,-585.91,0.00057534,120]
[320982910,1711727473268,-1518.44,0.00057534,120]
[320982911,1711727473279,-6048.06,0.00057534,120]
[320982912,1711727473289,-500.0,0.00057534,120]
[320982913,1711727473299,-1161.06,0.00057534,120]
[320982914,1711727473310,-500.0,0.00057534,120]
[320982915,1711727473320,-745.62,0.00057534,120]
[320982916,1711727473330,-1559.57,0.00057534,120]
[320982917,1711727473341,-2450.8,0.00057534,120]
[320982918,1711727473351,-2642.03,0.00057534,120]
[320982919,1711727473362,-500.0,0.00057534,120]
[320982920,1711727473372,-1403.63,0.00057534,120]
[320982921,1711727473386,-2002.47,0.00057534,120]
[320982922,1711727473396,-3231.44,0.00057534,120]
[320982923,1711727473407,-1180.94,0.00057534,120]
[320982924,1711727473418,-3834.73,0.00057534,21]
[320982925,1711727473428,-1463.13,0.00057534,120]
[320982926,1711727473439,-1395.72,0.00057534,120]
[320982927,1711727473449,-1805.89,0.00057534,120]
[320982928,1711727473461,-1942.66,0.00057534,120]
[320982929,1711727473472,-1171.63,0.00057534,120]
[320982930,1711727473484,-4514.05,0.00057534,120]
[320982931,1711727473495,-742.08,0.00057534,120]
[320982932,1711727473509,-733.91,0.00057534,120]
[320982933,1711727473520,-1636.77,0.00057534,120]
[320982934,1711727473531,-612.5,0.00057534,120]
[320982935,1711727473543,-2474.6,0.00057534,120]
[320982936,1711727473553,-1947.96,0.00057534,120]
[320982937,1711727473565,-802.89,0.00057534,120]
[320982938,1711727473578,-2662.27,0.00057534,120]
[320982939,1711727473589,-949.51,0.00057534,120]
[320982940,1711727473602,-500.0,0.00057534,120]
[320982941,1711727473613,-1925.65,0.00057534,120]
[320982942,1711727473626,-500.04,0.00057534,120]
[320982943,1711727473639,-3660.18,0.00057534,120]
[320982944,1711727473652,-500.0,0.00057534,120]
[320982945,1711727473666,-3065.63,0.00057534,120]
[320982946,1711727473677,-550.56,0.00057534,120]
[320982947,1711727473690,-3205.63,0.00057534,120]
[320982948,1711727473700,-1058.7,0.00057534,120]
[320982949,1711727473714,-4965.43,0.00057534,120]
[320982950,1711727473726,-3495.3,0.00057534,120]
[320982951,1711727473740,-500.0,0.00057534,120]
[320982952,1711727473752,-2680.22,0.00057534,120]
[320982953,1711727473764,-2574.1,0.00057534,120]
[320982954,1711727473782,-520.8,0.00057534,120]
[320982955,1711727473794,-525.6,0.00057534,120]
[320982956,1711727473814,-1064.04,0.00057534,120]
[320982957,1711727473826,-2324.45,0.00057534,120]
[320982958,1711727473838,-600.0,0.00057557,90]
[320982959,1711727473851,-700.0,0.00057557,90]
[320982960,1711727473862,-151.18226642,0.0005758,73]
[320982961,1711727473873,-5229.99453111,0.00057598,36]
[320982962,1711727473884,-1017.0,0.000576,7]
[320982963,1711727473894,-207.17777778,0.00057644,120]
[320982964,1711727473905,-159.43933229,0.00057654,120]
[320982965,1711727473916,-200.0,0.00057697,120]
[320982966,1711727473927,-800.0,0.00057756,120]
[320982967,1711727473938,-226.58,0.000578,30]
[320982968,1711727473950,-1556.54,0.00057808,120]
[320982969,1711727473961,-659.08,0.00057808,120]
[320982970,1711727473972,-935.94,0.00057808,120]
[320982971,1711727473987,-1235.87,0.00057808,120]
[320982972,1711727473998,-543.31,0.00057808,120]
[320982973,1711727474009,-1414.23,0.00057808,120]
[320982974,1711727474019,-774.8,0.00057808,120]
[320982975,1711727474030,-4545.9,0.00057808,120]
[320982976,1711727474040,-1435.29,0.00057808,120]
[320982977,1711727474051,-729.96,0.00057808,120]
[320982978,1711727474062,-614.95,0.00057808,120]
[320982979,1711727474075,-509.47,0.00057808,120]
[320982980,1711727474086,-628.83,0.00057808,120]
[320982981,1711727474096,-724.91,0.00057808,120]
[320982982,1711727474110,-1918.37,0.00057808,120]
[320982983,1711727474120,-916.59,0.00057808,120]
[320982984,1711727474131,-500.0,0.00057808,120]
[320982985,1711727474142,-852.8,0.00057808,120]
[320982986,1711727474154,-500.0,0.00057808,120]
[320982987,1711727474165,-500.0,0.00057808,120]
[320982988,1711727474177,-960.04,0.00057808,120]
[320982989,1711727474188,-581.19,0.00057808,120]
[320982990,1711727474199,-5112.99,0.00057808,120]
[320982991,1711727474210,-1097.14,0.00057808,120]
[320982992,1711727474221,-3742.34,0.00057808,120]
[320982993,1711727474234,-1281.54,0.00057808,120]
[320982994,1711727474245,-501.49,0.00057808,120]
[320982995,1711727474256,-2596.86,0.00057808,120]
[320982996,1711727474267,-1518.44,0.00057808,120]
[320982997,1711727474279,-585.91,0.00057808,120]
[320982998,1711727474291,-6048.06,0.00057808,120]
[320982999,1711727474302,-500.0,0.00057808,120]
[320983000,1711727474313,-1161.06,0.00057808,120]
[320983001,1711727474325,-500.0,0.00057808,120]
[320983002,1711727474336,-745.62,0.00057808,120]
[320983003,1711727474347,-1559.57,0.00057808,120]
[320983004,1711727474358,-2450.8,0.00057808,120]
[320983005,1711727474369,-2642.03,0.00057808,120]
[320983006,1711727474381,-500.0,0.00057808,120]
[320983007,1711727474392,-1403.63,0.00057808,120]
[320983008,1711727474403,-2002.47,0.00057808,120]
[320983009,1711727474414,-3231.44,0.00057808,120]
[320983010,1711727474426,-1180.94,0.00057808,120]
[320983011,1711727474436,-3834.73,0.00057808,21]
[320983012,1711727474447,-1463.13,0.00057808,120]
[320983013,1711727474458,-1395.72,0.00057808,120]
[320983014,1711727474473,-1805.89,0.00057808,120]
[320983015,1711727474486,-1942.66,0.00057808,120]
[320983016,1711727474497,-4514.05,0.00057808,120]
[320983017,1711727474509,-742.08,0.00057808,120]
[320983018,1711727474520,-733.91,0.00057808,120]
[320983019,1711727474531,-1636.77,0.00057808,120]
[320983020,1711727474544,-612.5,0.00057808,120]
[320983021,1711727474555,-2474.6,0.00057808,120]
[320983022,1711727474566,-1947.96,0.00057808,120]
[320983023,1711727474577,-802.89,0.00057808,120]
[320983024,1711727474589,-2662.27,0.00057808,120]
[320983025,1711727474600,-949.51,0.00057808,120]
[320983026,1711727474611,-500.0,0.00057808,120]
[320983027,1711727474623,-1925.65,0.00057808,120]
[320983028,1711727474634,-500.04,0.00057808,120]